fUSD/lending_fUSD_20240922
["ID","MTS","AMOUNT","RATE_DAILY","PERIOD"]
[338883000,1727003229373,174.1,0.00010959,2]
[338883019,1727003235415,250.0,0.00011777,2]
[338883020,1727003248268,937.97,0.00011771,2]
[338883021,1727003266169,923.81,0.00011771,2]
[338883022,1727003296547,258.47,0.00011853,2]
[338883023,1727003335364,167.02,0.00011764,2]
[338883025,1727003361669,171.66,0.00011764,2]
[338883030,1727003372933,161.56888771,0.00011705,2]
[338883048,1727003431960,-171.91718399,0.00012066,2]
[338883049,1727003431970,-150.0,0.00012077,2]
[338883050,1727003431980,-150.0,0.00012098,2]
[338883051,1727003431989,-123.08108278,0.00012121,2]
[338883052,1727003432001,-26.91891722,0.00012121,2]
[338883053,1727003432011,-150.0,0.00012166,2]
[338883054,1727003432020,-150.0,0.00012207,2]
[338883055,1727003432030,-150.0,0.00012207,2]
[338883056,1727003432039,-150.0,0.00012207,2]
[338883057,1727003432049,-150.0,0.00012234,2]
[338883058,1727003432059,-352.33,0.00012245,2]
[338883059,1727003432068,-150.0,0.00012303,2]
[338883060,1727003432077,-150.99,0.00012303,2]
[338883061,1727003432086,-25.99706398,0.00012303,2]
[338883062,1727003432098,-559.31293602,0.00012303,2]
[338883063,1727003432108,-181.75,0.00012317,2]
[338883064,1727003432118,-150.0,0.00012337,2]
[338883065,1727003432128,-1547.75080843,0.00012337,2]
[338883066,1727003432139,-334.50747262,0.00012337,2]
[338883067,1727003432150,-1797.40548677,0.00012337,2]
[338883068,1727003432161,-474.38623218,0.00012337,2]
[338883069,1727003432170,-174.24,0.0001236,2]
[338883070,1727003432179,-150.0,0.00012371,2]
[338883071,1727003432189,-150.0,0.0001244,2]
[338883072,1727003432198,-167.09,0.00012445,2]
[338883073,1727003432207,-150.0,0.00012467,2]
[338883074,1727003432216,-150.0,0.00012467,2]
[338883075,1727003432225,-150.0,0.00012467,2]
[338883076,1727003432235,-150.0,0.00012508,2]
[338883077,1727003432244,-150.0,0.00012553,2]
[338883078,1727003432254,-150.0,0.00012576,2]
[338883079,1727003432263,-150.0,0.00012597,2]
[338883080,1727003432273,-2500.0,0.0001261,2]
[338883081,1727003432283,-150.0,0.00012645,2]
[338883082,1727003432292,-903.7884857,0.00012648,2]
[338883083,1727003432304,-1596.2115143,0.00012648,2]
[338883084,1727003432313,-421.90097643,0.00012655,2]
[338883085,1727003432323,-1000.0,0.000127,2]
[338883086,1727003432333,-150.0,0.000127,2]
[338883087,1727003432343,-150.0,0.00012713,2]
[338883088,1727003432352,-150.0,0.00012727,2]
[338883090,1727003432362,-150.0,0.00012727,2]
[338883092,1727003432372,-150.0,0.00012727,2]
[338883094,1727003432381,-278.0,0.00012741,2]
[338883095,1727003432391,-151.19,0.00012748,2]
[338883097,1727003432400,-343.544,0.00012777,2]
[338883100,1727003432411,-170.19509743,0.00012777,2]
[338883101,1727003432421,-150.0,0.00012781,2]
[338883103,1727003432434,-215.81,0.00012783,2]
[338883105,1727003432444,-299.99,0.00012783,2]
[338883107,1727003432453,-1500.0,0.00012798,2]
[338883108,1727003432463,-1.90018023,0.00012799,2]
[338883109,1727003432475,-298.09981977,0.00012799,2]
[338883110,1727003432484,-60.83518023,0.000128,2]
[338883111,1727003432496,-152.62781977,0.000128,2]
[338883112,1727003432505,-183.30158015,0.000128,2]
[338883113,1727003432516,-348.89010204,0.000128,2]
[338883114,1727003432527,-834.81196786,0.000128,2]
[338883115,1727003432538,-345.5,0.000128,2]
[338883116,1727003432549,-566.54007379,0.000128,2]
[338883117,1727003436871,23900.0,0.00011748,2]
[338883121,1727003438103,-106.89907616,0.000128,2]
[338883122,1727003438115,-150.0,0.0001285,2]
[338883123,1727003438126,-41.35092384,0.00012856,2]
[338883124,1727003438137,-108.64907616,0.00012856,2]
[338883125,1727003438149,-528.61740854,0.00012857,2]
[338883126,1727003438407,-1682.0427743,0.00012857,2]
[338883127,1727003438420,-12592.16981716,0.00012857,2]
[338883128,1727003438435,-6276.66917415,0.0001287,2]
[338883130,1727003438445,-1000.0,0.00012877,2]
[338883132,1727003438457,-1000.0,0.00012877,2]
[338883133,1727003438467,-1000.0,0.00012877,2]
[338883134,1727003438478,-1000.0,0.00012877,2]
[338883135,1727003438488,-1000.0,0.00012877,2]
[338883136,1727003438498,-1000.0,0.00012877,2]
[338883137,1727003438509,-1000.0,0.00012877,2]
[338883138,1727003438519,-1000.0,0.00012877,2]
[338883139,1727003438529,-1000.0,0.00012877,2]
[338883140,1727003438539,-1000.0,0.00012877,2]
[338883141,1727003438548,-1000.0,0.00012877,2]
[338883142,1727003438557,-1000.0,0.00012877,2]
[338883143,1727003438566,-1000.0,0.00012877,2]
[338883144,1727003438575,-1000.0,0.00012877,2]
[338883145,1727003438584,-1000.0,0.00012877,2]
[338883146,1727003438593,-408.9014,0.00012877,2]
[338883147,1727003438603,-1549.0,0.00012891,2]
[338883148,1727003438612,-448.0,0.00012891,2]
[338883149,1727003438621,-625.0,0.00012891,2]
[338883150,1727003438630,-1262.0,0.00012891,2]
[338883151,1727003438639,-933.0,0.00012891,2]
[338883152,1727003438648,-558.0,0.00012891,2]
[338883153,1727003438658,-1903.0,0.00012891,2]
[338883154,1727003438667,-553.0,0.00012891,2]
[338883155,1727003438676,-276.036,0.00012891,2]
[338883156,1727003438685,-3345.0,0.00012891,2]
[338883157,1727003438694,-1913.0,0.00012891,2]
[338883158,1727003438704,-500.0,0.00012896,2]
[338883159,1727003438713,-2500.0,0.00012898,2]
[338883160,1727003438722,-22705.5772,0.00012899,2]
[338883161,1727003438731,-7781.9876,0.00012899,2]
[338883162,1727003438930,-620.0222,0.00012899,2]
[338883163,1727003438939,-171.710405,0.00012899,2]
[338883164,1727003438949,-8668.4252,0.000129,2]
[338883165,1727003438958,-3054.9624,0.000129,2]
[338883166,1727003438967,-1720.762,0.000129,2]
[338883167,1727003438976,-283.9564,0.000129,2]
[338883168,1727003438985,-13459.7067,0.000129,2]
[338883169,1727003438995,-899.8226,0.000129,2]
[338883170,1727003439004,-209.0038,0.000129,2]
[338883171,1727003439014,-1000.0,0.000129,2]
[338883172,1727003439024,-2058.0407,0.000129,2]
[338883173,1727003439033,-176.75978914,0.000129,2]
[338883174,1727003439042,-164.34819362,0.000129,2]
[338883175,1727003439052,-1647.9659,0.000129,2]
[338883176,1727003439061,-198.54068962,0.000129,2]
[338883177,1727003439070,-1000.0,0.000129,2]
[338883178,1727003439080,-2818.15287756,0.000129,2]
[338883179,1727003439090,-169.00379342,0.000129,2]
[338883180,1727003439099,-12103.331,0.00012903,2]
[338883181,1727003439109,-1147.0,0.00012903,2]
[338883182,1727003439118,-5867.0,0.00012903,2]
[338883183,1727003439127,-150.0,0.00012903,2]
[338883184,1727003439136,-1081.0,0.00012903,2]
[338883185,1727003439147,-150.0,0.00012918,2]
[338883186,1727003439156,-500.0,0.00012973,2]
[338883187,1727003439165,-215.04411439,0.00012986,2]
[338883188,1727003439174,-297.83616549,0.00012986,2]
[338883189,1727003439184,-182.31967874,0.00012986,2]
[338883190,1727003439194,-216.80795362,0.00012986,2]
[338883191,1727003439205,-271.39998586,0.00012986,2]
[338883192,1727003439214,-153.4,0.0001299,2]
[338883193,1727003439224,-164.67482093,0.0001299,2]
[338883194,1727003439234,-164.67482093,0.0001299,2]
[338883195,1727003439243,-153.4,0.0001299,2]
[338883196,1727003439253,-153.4,0.0001299,2]
[338883197,1727003439263,-153.4,0.0001299,2]
[338883198,1727003439273,-153.4,0.0001299,2]
[338883199,1727003439283,-153.4,0.0001299,2]
[338883200,1727003439292,-153.4,0.0001299,2]
[338883201,1727003439302,-153.4,0.0001299,2]
[338883202,1727003439311,-153.4,0.0001299,2]
[338883203,1727003439320,-153.4,0.0001299,2]
[338883204,1727003439330,-153.4,0.0001299,2]
[338883205,1727003439340,-153.4,0.0001299,2]
[338883206,1727003439349,-153.4,0.0001299,2]
[338883207,1727003439358,-153.4,0.0001299,2]
[338883208,1727003439367,-153.4,0.0001299,2]
[338883209,1727003439376,-153.4,0.0001299,2]
[338883210,1727003439385,-11567.2225659,0.00012995,2]
[338883211,1727003439395,-3475.5821781,0.00012995,2]
[338883212,1727003439404,-5930.0700879,0.00012995,2]
[338883213,1727003439413,-368.5574704,0.00012995,2]
[338883214,1727003439422,-500.0,0.00012998,2]
[338883215,1727003439435,-209.82493842,0.00012998,2]
[338883216,1727003439444,-500.0,0.00012998,2]
[338883217,1727003439454,-500.0,0.00012998,2]
[338883218,1727003439463,-3414.04,0.00012998,2]
[338883219,1727003439474,-540.28,0.00012998,2]
[338883220,1727003439483,-1303.59,0.00012998,2]
[338883221,1727003439492,-500.0,0.00012998,2]
[338883222,1727003439502,-500.97331484,0.00012998,2]
[338883223,1727003439512,-360.31152246,0.00012998,2]
[338883224,1727003439521,-500.0,0.00012998,2]
[338883225,1727003439530,-500.0,0.00012998,2]
[338883226,1727003439539,-500.0,0.00012999,2]
[338883227,1727003439548,-500.0,0.00012999,2]
[338883228,1727003439557,-500.0,0.00012999,2]
[338883229,1727003439566,-500.0,0.00012999,2]
[338883230,1727003439575,-500.0,0.00012999,2]
[338883231,1727003439583,-500.0,0.00012999,2]
[338883232,1727003439593,-500.0,0.00012999,2]
[338883233,1727003439602,-500.0,0.00012999,2]
[338883234,1727003439611,-500.0,0.00012999,2]
[338883235,1727003439621,-232.49904959,0.00012999,2]
[338883236,1727003439631,-1196.72,0.00012999,2]
[338883237,1727003439641,-1196.72,0.00012999,2]
[338883238,1727003439651,-1196.72,0.00012999,2]
[338883239,1727003439660,-1196.72,0.00012999,2]
[338883240,1727003439669,-1196.72,0.00012999,2]
[338883241,1727003439678,-1196.72,0.00012999,2]
[338883242,1727003439687,-1196.72,0.00012999,2]
[338883243,1727003439696,-501.2233168,0.00012999,2]
[338883244,1727003439705,-1196.72,0.00012999,2]
[338883245,1727003439714,-1196.72,0.00012999,2]
[338883246,1727003439723,-1196.72,0.00012999,2]
[338883247,1727003439732,-1196.72,0.00012999,2]
[338883249,1727003439741,-1196.72,0.00012999,2]
[338883250,1727003439751,-1196.72,0.00012999,2]
[338883251,1727003439760,-1196.72,0.00012999,2]
[338883252,1727003439769,-1196.72,0.00012999,2]
[338883253,1727003439778,-1196.72,0.00012999,2]
[338883254,1727003439788,-1196.72,0.00012999,2]
[338883255,1727003439797,-1196.72,0.00012999,2]
[338883256,1727003439806,-1196.72,0.00012999,2]
[338883257,1727003439816,-1196.72,0.00012999,2]
[338883258,1727003439826,-1196.72,0.00012999,2]
[338883259,1727003439836,-1196.72,0.00012999,2]
[338883260,1727003439847,-1196.72,0.00012999,2]
[338883261,1727003439857,-1196.7557663,0.00012999,2]
[338883262,1727003439867,-500.0,0.00012999,2]
[338883263,1727003439877,-500.0,0.00012999,2]
[338883264,1727003439886,-500.0,0.00012999,2]
[338883265,1727003439896,-500.0,0.00012999,2]
[338883266,1727003439905,-500.0,0.00012999,2]
[338883267,1727003439914,-500.0,0.00012999,2]
[338883268,1727003439924,-500.0,0.00012999,2]
[338883269,1727003439934,-500.0,0.00012999,2]
[338883270,1727003439943,-500.0,0.00012999,2]
[338883271,1727003439953,-500.0,0.00012999,2]
[338883272,1727003439964,-500.0,0.00012999,2]
[338883273,1727003439975,-500.0,0.00012999,2]
[338883274,1727003439985,-200.4555835,0.00012999,2]
[338883275,1727003439996,-502.13790788,0.00012999,2]
[338883276,1727003440005,-500.0,0.00012999,2]
[338883277,1727003440014,-500.0,0.00012999,2]
[338883278,1727003440025,-500.0,0.00012999,2]
[338883279,1727003440035,-500.0,0.00012999,2]
[338883280,1727003440045,-500.0,0.00012999,2]
[338883281,1727003440054,-500.0,0.00012999,2]
[338883282,1727003440063,-500.0,0.00012999,2]
[338883283,1727003440073,-500.0,0.00012999,2]
[338883284,1727003440082,-500.0,0.00012999,2]
[338883285,1727003440092,-500.0,0.00012999,2]
[338883286,1727003440102,-500.0,0.00012999,2]
[338883287,1727003440112,-186.0688276,0.00012999,2]
[338883288,1727003440121,-500.0,0.00012999,2]
[338883289,1727003440130,-500.0,0.00012999,2]
[338883290,1727003440139,-500.0,0.00012999,2]
[338883291,1727003440149,-500.0,0.00012999,2]
[338883292,1727003440158,-500.0,0.00012999,2]
[338883293,1727003440167,-500.0,0.00012999,2]
[338883294,1727003440176,-500.0,0.00012999,2]
[338883295,1727003440185,-500.0,0.00012999,2]
[338883296,1727003440195,-500.0,0.00012999,2]
[338883297,1727003440204,-500.0,0.00012999,2]
[338883298,1727003440214,-500.0,0.00012999,2]
[338883299,1727003440223,-500.0,0.00012999,2]
[338883300,1727003440234,-330.399996,0.00012999,2]
[338883301,1727003440244,-500.0,0.00012999,2]
[338883302,1727003440254,-500.0,0.00012999,2]
[338883303,1727003440264,-500.0,0.00012999,2]
[338883304,1727003440275,-500.0,0.00012999,2]
[338883305,1727003440286,-500.0,0.00012999,2]
[338883306,1727003440295,-500.0,0.00012999,2]
[338883307,1727003440306,-500.0,0.00012999,2]
[338883308,1727003440316,-500.0,0.00012999,2]
[338883309,1727003440327,-500.0,0.00012999,2]
[338883310,1727003440338,-500.0,0.00012999,2]
[338883311,1727003440347,-320.29268436,0.00012999,2]
[338883312,1727003440357,-500.0,0.00012999,2]
[338883313,1727003440367,-500.0,0.00012999,2]
[338883314,1727003440377,-500.0,0.00012999,2]
[338883315,1727003440387,-162.61591345,0.00012999,2]
[338883316,1727003440399,-3414.04,0.00012999,2]
[338883317,1727003440408,-3414.04,0.00012999,2]
[338883318,1727003440418,-3414.04,0.00012999,2]
[338883319,1727003440432,-3414.04,0.00012999,2]
[338883320,1727003440444,-3414.04,0.00012999,2]
[338883321,1727003440456,-2341.73392079,0.00012999,2]
[338883322,1727003440511,-326.9348,0.00012895,2]
[338883323,1727003440520,-1072.30607921,0.00012999,2]
[338883324,1727003440529,-3414.04,0.00012999,2]
[338883325,1727003440538,-3414.04,0.00012999,2]
[338883326,1727003440547,-3414.04,0.00012999,2]
[338883327,1727003440556,-3414.04,0.00012999,2]
[338883328,1727003440565,-3414.04,0.00012999,2]
[338883329,1727003440574,-3414.04,0.00012999,2]
[338883330,1727003440583,-3414.04,0.00012999,2]
[338883331,1727003440592,-3414.04,0.00012999,2]
[338883332,1727003440601,-3414.04,0.00012999,2]
[338883333,1727003440610,-3414.04,0.00012999,2]
[338883334,1727003440621,-3414.04,0.00012999,2]
[338883335,1727003440631,-3414.04,0.00012999,2]
[338883336,1727003440641,-3414.04,0.00012999,2]
[338883337,1727003440650,-3414.04,0.00012999,2]
[338883338,1727003440659,-3414.04,0.00012999,2]
[338883339,1727003440668,-3414.04,0.00012999,2]
[338883340,1727003440679,-3414.17886359,0.00012999,2]
[338883341,1727003440691,-540.28,0.00012999,2]
[338883342,1727003440702,-540.28,0.00012999,2]
[338883343,1727003440711,-540.28,0.00012999,2]
[338883344,1727003440721,-540.28,0.00012999,2]
[338883345,1727003440730,-540.28,0.00012999,2]
[338883346,1727003440739,-540.28,0.00012999,2]
[338883347,1727003440748,-540.28,0.00012999,2]
[338883348,1727003440757,-540.28,0.00012999,2]
[338883349,1727003440766,-540.28,0.00012999,2]
[338883350,1727003440776,-540.28,0.00012999,2]
[338883351,1727003440787,-540.28,0.00012999,2]
[338883352,1727003440796,-540.28,0.00012999,2]
[338883353,1727003440807,-540.28,0.00012999,2]
[338883354,1727003440818,-540.28,0.00012999,2]
[338883355,1727003440828,-540.28,0.00012999,2]
[338883356,1727003440839,-540.28,0.00012999,2]
[338883357,1727003440850,-540.28,0.00012999,2]
[338883358,1727003440861,-540.28,0.00012999,2]
[338883359,1727003440871,-540.28,0.00012999,2]
[338883360,1727003440881,-540.28,0.00012999,2]
[338883361,1727003440891,-540.28,0.00012999,2]
[338883362,1727003440901,-540.28,0.00012999,2]
[338883363,1727003440911,-540.51918623,0.00012999,2]
[338883364,1727003440920,-1303.59,0.00012999,2]
[338883365,1727003440929,-1303.59,0.00012999,2]
[338883366,1727003440938,-1303.59,0.00012999,2]
[338883367,1727003440947,-1303.59,0.00012999,2]
[338883368,1727003440957,-1303.59,0.00012999,2]
[338883369,1727003440967,-1303.59,0.00012999,2]
[338883370,1727003440978,-1303.59,0.00012999,2]
[338883371,1727003440988,-1303.59,0.00012999,2]
[338883372,1727003440998,-1303.59,0.00012999,2]
[338883373,1727003441007,-1303.59,0.00012999,2]
[338883374,1727003441016,-1303.59,0.00012999,2]
[338883375,1727003441026,-1303.59,0.00012999,2]
[338883376,1727003441037,-1303.59,0.00012999,2]
[338883377,1727003441047,-1303.59,0.00012999,2]
[338883378,1727003441056,-1303.59,0.00012999,2]
[338883379,1727003441065,-1303.59,0.00012999,2]
[338883380,1727003441075,-1303.59,0.00012999,2]
[338883381,1727003441084,-1303.59,0.00012999,2]
[338883382,1727003441094,-1303.59,0.00012999,2]
[338883383,1727003441103,-1303.59,0.00012999,2]
[338883384,1727003441112,-1303.59,0.00012999,2]
[338883385,1727003441122,-1303.59,0.00012999,2]
[338883386,1727003441131,-1303.62491008,0.00012999,2]
[338883387,1727003441140,-500.0,0.00012999,2]
[338883388,1727003441156,-500.0,0.00012999,2]
[338883389,1727003441165,-500.0,0.00012999,2]
[338883390,1727003441175,-500.0,0.00012999,2]
[338883391,1727003441183,-500.0,0.00012999,2]
[338883392,1727003441192,-500.0,0.00012999,2]
[338883393,1727003441202,-500.0,0.00012999,2]
[338883394,1727003441212,-500.0,0.00012999,2]
[338883395,1727003441221,-500.0,0.00012999,2]
[338883396,1727003441230,-500.0,0.00012999,2]
[338883397,1727003441239,-500.0,0.00012999,2]
[338883398,1727003441248,-500.0,0.00012999,2]
[338883399,1727003441257,-500.0,0.00012999,2]
[338883400,1727003441266,-500.0,0.00012999,2]
[338883401,1727003441275,-500.0,0.00012999,2]
[338883402,1727003441284,-500.0,0.00012999,2]
[338883403,1727003441293,-500.0,0.00012999,2]
[338883404,1727003441303,-500.0,0.00012999,2]
[338883405,1727003441312,-500.0,0.00012999,2]
[338883406,1727003441322,-514.949997,0.00012999,2]
[338883407,1727003441334,-500.0,0.00012999,2]
[338883408,1727003441343,-500.0,0.00012999,2]
[338883409,1727003441355,-500.0,0.00012999,2]
[338883410,1727003441365,-500.0,0.00012999,2]
[338883411,1727003441376,-325.3705358,0.00012999,2]
[338883412,1727003441390,-174.6294642,0.00012999,2]
[338883413,1727003441403,-500.0,0.00012999,2]
[338883414,1727003441412,-500.0,0.00012999,2]
[338883415,1727003441422,-500.0,0.00012999,2]
[338883416,1727003441435,-500.0,0.00012999,2]
[338883417,1727003441444,-500.0,0.00012999,2]
[338883418,1727003441455,-209.8705358,0.00012999,2]
[338883419,1727003441471,-290.1294642,0.00012999,2]
[338883420,1727003441481,-500.0,0.00012999,2]
[338883421,1727003441492,-500.0,0.00012999,2]
[338883422,1727003441502,-309.0806946,0.00012999,2]
[338883435,1727003443735,-190.9193054,0.00012999,2]
[338883436,1727003443747,-70.5576933,0.00012999,2]
[338883437,1727003443761,-429.4423067,0.00012999,2]
[338883438,1727003443772,-500.0,0.00012999,2]
[338883439,1727003443786,-500.0,0.00012999,2]
[338883440,1727003443798,-500.0,0.00012999,2]
[338883441,1727003443812,-390.5576933,0.00012999,2]
[338883442,1727003443826,-109.4423067,0.00012999,2]
[338883443,1727003443837,-184.70763802,0.00012999,2]
[338883444,1727003443850,-315.29236198,0.00012999,2]
[338883445,1727003443862,-519.38791198,0.00012999,2]
[338883446,1727003443875,-500.0,0.00012999,2]
[338883447,1727003443886,-500.0,0.00012999,2]
[338883448,1727003443898,-500.0,0.00012999,2]
[338883449,1727003443908,-500.0,0.00012999,2]
[338883450,1727003443919,-500.0,0.00012999,2]
[338883451,1727003443930,-500.0,0.00012999,2]
[338883452,1727003443941,-500.0,0.00012999,2]
[338883453,1727003443952,-500.0,0.00012999,2]
[338883454,1727003443963,-500.0,0.00012999,2]
[338883455,1727003443974,-500.0,0.00012999,2]
[338883456,1727003443985,-488.61,0.00012999,2]
[338883457,1727003443998,-596.0,0.00013,2]
[338883458,1727003444010,-1221.00822754,0.00013,2]
[338883459,1727003444023,-1490.79089986,0.00013,2]
[338883460,1727003444037,-772.82854254,0.00013,2]
[338883461,1727003444050,-6655.27794624,0.00013,2]
[338883462,1727003444063,-392.29490377,0.00013,2]
[338883463,1727003444075,-1041.4084361,0.00013,2]
[338883464,1727003444088,-700.1734372,0.00013,2]
[338883465,1727003444100,-1806.49803386,0.00013,2]
[338883466,1727003444120,-680.3546727,0.00013,2]
[338883467,1727003444134,-764.825,0.00013,2]
[338883468,1727003444147,-194028.81736712,0.00013,2]
[338883469,1727003444158,-185270.01967614,0.00013,2]
[338883470,1727003444168,-1341.16655129,0.00013,2]
[338883471,1727003444179,-423900.73185271,0.00013,2]
[338883472,1727003444190,-200489.32335007,0.00013,2]
[338883473,1727003444213,-1326.30959715,0.00013,2]
[338883474,1727003444226,-12386.30117644,0.00013,2]
[338883475,1727003444238,-438.829329,0.00013,2]
[338883476,1727003444256,-464.504,0.00013,2]
[338883477,1727003444268,-12611.58875453,0.00013,2]
[338883478,1727003444281,-344.20479733,0.00013,2]
[338883479,1727003444294,-790.56237044,0.00013,2]
[338883480,1727003444307,-2396.5336603,0.00013,2]
[338883481,1727003444322,-2500.0,0.00013,2]
[338883482,1727003444334,-5965.0,0.00013,2]
[338883483,1727003444354,-250.0,0.00012705,2]
[338883484,1727003444365,-20970.78577,0.00013,2]
[338883485,1727003444379,-34426.799998,0.00013,2]
[338883488,1727003445925,-470.61999998,0.00013,2]
[338883489,1727003445938,-344.831931,0.00013,2]
[338883490,1727003445950,-291.09122005,0.00013,2]
[338883491,1727003445964,-581.65852701,0.00013,2]
[338883492,1727003445976,-264.208,0.00013,2]
[338883493,1727003445988,-3871.59662795,0.00013,2]
[338883494,1727003446099,-4800.44466783,0.00013,2]
[338883495,1727003446111,-281.818872,0.00013,2]
[338883496,1727003446124,-2570.41893268,0.00013,2]
[338883497,1727003446137,-1000.18527722,0.00013,2]
[338883498,1727003446150,-628.50624787,0.00013,2]
[338883499,1727003446164,-9557.85,0.00013,2]
[338883500,1727003446178,-4336.80998317,0.00013,2]
[338883501,1727003446191,-554.29887854,0.00013,2]
[338883502,1727003446204,-389.63124367,0.00013,2]
[338883503,1727003446218,-3358.77699819,0.00013,2]
[338883504,1727003446231,-5985.28762513,0.00013,2]
[338883505,1727003446244,-300.0,0.00013,2]
[338883506,1727003446256,-51511.94207137,0.00013,2]
[338883524,1727003538525,317.09,0.00010196,2]
[338883525,1727003604307,351.270979,0.00022,120]
[338883526,1727003633900,6707.79367929,0.00011992,2]
[338883527,1727003655154,214.28,0.00011907,2]
[338883528,1727003675212,500.0,0.00010068,2]
[338883529,1727003697188,500.0,8.972e-05,2]
[338883530,1727003697938,600.0,0.00010068,2]
[338883531,1727003698792,500.0,0.00011712,2]
[338883532,1727003699662,600.0,0.00011438,2]
[338883533,1727003744192,700.0,0.00010068,2]
[338883534,1727003745868,700.0,0.00011438,2]
[338883535,1727003780941,200.0,0.00011846,2]
[338883536,1727003846145,801.56,0.00011846,2]
[338883537,1727003859399,600.0,0.00010068,2]
[338883538,1727003861057,600.0,0.00011438,2]
[338883539,1727003924479,226.0,0.0001184,2]
[338883540,1727003925635,171.61,0.0001184,2]
[338883541,1727003972078,500.0,0.00011164,2]
[338883542,1727004002068,800.0,0.00011826,2]
[338883543,1727004016538,23900.0,0.00011826,2]
[338883544,1727004039076,150.0,0.00011834,2]
[338883545,1727004056207,250.0,0.00011832,2]
[338883546,1727004066058,368.2,9.914e-05,2]
[338883547,1727004084550,500.0,0.00011164,2]
[338883548,1727004164265,250.0,0.00011839,2]
[338883549,1727004196851,500.0,0.00011164,2]
[338883550,1727004304016,150.0,0.00011688,2]
[338883551,1727004306853,500.0,0.00011164,2]
[338883552,1727004307064,150.0,0.00011688,2]
[338883553,1727004313947,150.0,0.00011688,2]
[338883554,1727004329080,68340.36004931,0.000101,2]
[338883556,1727004346178,154.0,0.00011865,2]
[338883557,1727004354507,4513.13594689,6.94e-05,2]
[338883558,1727004371940,400.78,0.00011865,2]
[338883559,1727004413360,500.0,0.00011164,2]
[338883560,1727004417718,600.0,0.00011164,2]
[338883561,1727004435101,200.0,0.00011806,2]
[338883562,1727004440907,500.0,0.00010068,2]
[338883563,1727004444804,196.26,0.00010959,2]
[338883572,1727004453966,272.56,0.00011839,2]
[338883573,1727004478530,5897.05227416,0.0001,2]
[338883575,1727004497546,500.0,0.00011808,3]
[338883576,1727004518974,500.0,0.00011164,2]
[338883577,1727004523589,941.44,0.00011808,2]
[338883578,1727004527621,802.28,0.00011814,2]
[338883597,1727004606475,23900.0,0.00011821,2]
[338883600,1727004623404,500.0,0.00011164,2]
[338883605,1727004632061,-368.2,0.00012178,2]
[338883606,1727004632071,-200.0,0.000123,4]
[338883607,1727004632081,-500.0,0.000124,4]
[338883608,1727004632090,-169.22,0.00012445,2]
[338883609,1727004632100,-800.0,0.000125,4]
[338883610,1727004632110,-600.0,0.00012534,2]
[338883611,1727004632120,-1100.0,0.000126,4]
[338883612,1727004632129,-421.99265872,0.00012678,2]
[338883613,1727004632139,-6820.66338877,0.00012681,2]
[338883614,1727004632149,-1400.0,0.000127,4]
[338883615,1727004632158,-1549.0,0.000127,2]
[338883616,1727004632167,-150.0,0.00012724,2]
[338883617,1727004632177,-253.31,0.00012724,2]
[338883618,1727004632187,-299.99,0.00012724,2]
[338883619,1727004632196,-150.0,0.00012752,2]